Workbook

Sheet 2.1 INDEX
B1: COMMUNITY WATER COMPANY, LLC | E1: Exhibit 2.1
B2: General Rate Case Increase | E2: Docket No. 15-098-01
B3: Index | E3: 2015-12-18
B5: Exhibit No. | C5: Tab Label | D5: Page Title | E5: Page Description | F5: Page No.
B6: 2.1 | C6: INDEX | D6: Index | E6: Index Key for Exhibits | F6: 1
B7: 2.2 | C7: Rates | D7: ='2.2 Rates'!B3 -> Rate Schedule | E7: Shows the rate calculations and corresponding rate schedules.
B8: 2.2.a | C8: Notes | D8: ='2.2.a Notes'!B3 -> Rate Schedule (Notes) | E8: Notes and comments regarding Exhibit 1.2
B9: 2.3 | C9: Allocation of Expenses | D9: ='2.3 Allocation of Expense'!B3 -> Allocation of Annual Expenses and Annual Rates | E9: Categorizes expenses as either Fixed or Variable expenses. | F9: 2
B10: 2.3.a | C10: Notes | D10: ='2.3.a Notes'!B3 -> Expense Allocation (Notes) | E10: Notes and comments regarding Exhibit 1.3 | F10: 4
B11: 2.4 | C11: Adj. Expense | D11: ='2.4 Adj. Expenses'!B3 -> Adjustments to Expenses | E11: Shows any adjustments to the expense amounts submitted by the water company. | F11: 5
B12: 2.4.a | C12: Notes | D12: ='2.4.a Notes'!B3 -> Adjustments to Expenses (Notes) | E12: Notes and comments regarding Exhibit 1.4 | F12: 6
B13: 2.5 | C13: Rev & Exp | D13: ='2.5 Rev & Exp'!B3 -> Summary of Revenues and Expenses (Revenue Requirement) | E13: Summarizes the necessary expenses and shows the revenues required to fund these expenses. | F13: 7
B14: 2.6 | C14: Reserve | D14: ='2.6 Cap. Reserve'!B3 -> Capital Reserves | E14: Sets the minimum Capital Reserves funding requirements. | F14: 8
B15: 2.7 | C15: Deprec | D15: ='2.7 Asset Deprec'!B3 -> Depreciation Expense & Accumulated Depreciation Reconciliation | E15: Lists the Company's assets and calculates the Depreciation Expense and Accumulated Depreciation | F15: 9
B16: 2.7.a | C16: Notes | D16: ='2.7a Notes Asset Deprec'!B4 -> Depreciation Expense & Accumulated Depreciation Reconciliation (Notes) | E16: Notes and comments regarding Exhibit 1.7
B17: 2.8 | C17: CIAC | D17: ='2.8 CIAC'!B3 -> Contribution in Aid of Construction (CIAC) & Amortization of CIAC Reconciliation | E17: Lists the Company's assets contributed (donated) to the water company, usually by the developer. | F17: 10
B18: 2.9 | C18: Rate Base | D18: ='2.9 Rate Base'!B3 -> Rate Base | E18: Rate base is the value of property, or infrastructure, on which a public utility is permitted to earn a specified rate of return. | F18: 11
B19: 2.10 | C19: Ret on Inv | D19: ='2.10 Ret on Inv'!B3 -> Return on Investment | E19: Lists the company's return on its investment is has an opportunity to earn. | F19: 12
B20: 2.11 | C20: Taxes | D20: ='2.11 Taxes'!B3 -> Projected Federal & State Income Taxes | E20: Estimates the amount of Federal and State Income Tax the Company's liable for | F20: 13

Sheet 2.2 Rates
A1: back | B1: ='2.1 INDEX'!B1 -> COMMUNITY WATER COMPANY, LLC | G1: Exhibit 2.2
B2: ='2.1 INDEX'!B2 -> General Rate Case Increase | G2: ='2.1 INDEX'!E2 -> Docket No. 15-098-01
B3: Rate Schedule | G3: ='2.1 INDEX'!E3 -> 2015-12-18
B5: Fixed Expenses | D5: Reference | E5: Annual Rate | F5: Monthly Rate
A6: 1 | B6: Operation & Maintenance Expenses (System) | D6: [From Exhibit 2.3 - line 52]
A7: 2 | B7: Capital Reserve Account Funding | D7: [From Exhibit 2.3 - line 56]
A8: 3 | B8: Return on Investment (Profit) | D8: [From Exhibit 2.3 - line 61]
A9: 4 | B9: Monthly Fixed System Rate: (Paid by all qualified lots in Service Area) before taxes *
A10: 5
A11: 6 | B11: Taxes * | D11: [From Exhibit 2.3 - line 70]
A12: 7 | B12: Monthly Fixed System Rate: (Paid by all qualified lots in Service Area) after taxes *
A13: 8
A14: 9 | B14: Operation & Maintenance Expenses (System Usage) | D14: [From Exhibit 2.3 - line 52]
A15: 10 | B15: Return on Investment (Profit) | D15: [From Exhibit 2.3 - line 61]
A16: 11 | B16: Monthly Fixed System Usage Rate: (Paid in addition to Fixed System Rate by each CONNECTED Lot) *
A17: 12
A18: 13
A19: 14 | B19: Variable Expenses
A20: 15 | B20: Variable Water Consumption Expenses | D20: [From Exhibit 2.3 - line 52]
A21: 16 | B21: Total Gallons Used | D21: [From Exhibit 2.3 - line 3]
A22: 17 | B22: Variable Water Consumption Rate (Paid for each 1,000 gallons water used) **
A23: 18 | E23: (Line 15 ÷ (Line 16 X 1,000 Gallons))
A24: 19 | B24: * Rounded up to the nearest $0.05
A25: 20 | B25: ** Rounded up to the nearest $0.10
A26: 21
A27: 22
A28: 23
A29: 24 | B29: Recommended Rate Schedule
A30: 25 | B30: Monthly Rates | E30: Monthly Water Usage Amounts | G30: Billing Range
A31: 26 | E31: Full-Time Aver Use | F31: 12000
A32: 27 | B32: Standby Rate | D32: (From Line 7)
A33: 28 | B33: Base Rate for Connected Customers | D33: (Lines 7 + 12) | E33: 0 | F33: 0
A34: 29 | B34: Tier 1 (Per 1,000 Gallons) | D34: (From Line 17) | E34: 0 | F34: 12000
A35: 30 | B35: Tier 2 (Per 1,000 Gallons) | D35: (Line 29 X 1.5) | E35: =F34+1 -> 12001 | F35: =F34+12000 -> 24000
A36: 31 | B36: Tier 3 (Per 1,000 Gallons) | D36: (Line 30 X 1.5) | E36: =F35+1 -> 24001 | F36: =F35+12000 -> 36000
A37: 32 | B37: Tier 4 (Per 1,000 Gallons) | D37: (Line 31 X 1.5) | E37: =F36+1 -> 36001 | F37: OVER
A38: 33
A39: 34
A40: 35 | B40: Proposed by Company
A41: 36 | B41: Monthly Rates | E41: Monthly Water Usage Amounts | G41: Billing Range
A42: 37
A43: 38 | B43: Standby Rate
A44: 39 | B44: Base Rate for Connected Customers | E44: 0 | F44: 0
A45: 40 | B45: Tier 1 (Per 1,000 Gallons) | E45: 0 | F45: 5000
A46: 41 | B46: Tier 2 (Per 1,000 Gallons) | D46: (Line 40 x 2.5714) | E46: =F45+1 -> 5001 | F46: 20000
A47: 42 | B47: Tier 3 (Per 1,000 Gallons) | D47: (Line 41 x 1.1111) | E47: 20001 | F47: 30000
A48: 43 | B48: Tier 4 (Per 1,000 Gallons) | D48: (Line 42 x 1.6000) | E48: 30001 | F48: 40000
A49: 44 | B49: Tier 5 (Per 1,000 Gallons) | D49: (Line 43 x 1.5000) | E49: 40001 | F49: 60000
A50: 45 | B50: Tier 6 (Per 1,000 Gallons) | D50: (Line 44 x 1.2500) | E50: 60001 | F50: =F49+20000 -> 80000
A51: 46 | B51: Tier 7 (Per 1,000 Gallons) | D51: (Line 45 x 1.200) | E51: 80001 | F51: =F50+20000 -> 100000
A52: 47 | B52: Tier 8 (Per 1,000 Gallons) | D52: (Line 46 x 1.1667) | E52: =F51+1 -> 100001 | F52: OVER

Sheet 2.2.a Notes
A1: back | B1: ='2.1 INDEX'!B1 -> COMMUNITY WATER COMPANY, LLC | H1: Exhibit 2.2.a
B2: ='2.1 INDEX'!B2 -> General Rate Case Increase | H2: ='2.1 INDEX'!E2 -> Docket No. 15-098-01
B3: Rate Schedule (Notes) | H3: ='2.1 INDEX'!$E$3 -> 2015-12-18
B5: Comments:

Sheet 2.3 Allocation of Expense
A1: back | B1: ='2.1 INDEX'!B1 -> COMMUNITY WATER COMPANY, LLC | L1: Exhibit 2.3
B2: ='2.1 INDEX'!B2 -> General Rate Case Increase | L2: ='2.1 INDEX'!E2 -> Docket No. 15-098-01
B3: Allocation of Annual Expenses and Annual Rates | L3: ='2.1 INDEX'!$E$3 -> 2015-12-18
F5: | -------------------------- Fixed Expenses --------------------------| | L5: |---- Variable Expenses -----|
F6: 30% | I6: 70% | L6: 100%
A7: 1 | B7: Expense Category | D7: Adjusted Total Expenses [From Exh. 1.4] | F7: System Expenses | I7: System Usage Expenses | L7: Water Consumption Expenses
A8: 2 | F8: (Paid by ALL Customers) | I8: (Paid by CONNECTED Only)
A9: 3 | F9: Total Customers: | I9: Total CONNECTED Customers: | L9: Projected Usage:
A10: 4 | C10: NARUC #
A11: 5 | B11: Operation & Maintenance Expenses | F11: Amount | G11: Annual Rate | I11: Amount | J11: Annual Rate
A12: 6 | B12: ='2.4 Adj. Expenses'!B10 -> Salaries & Wages - Employees & Officers | C12: 601
A13: 7 | B13: ='2.4 Adj. Expenses'!B11 -> Payroll Taxes (SS Taxes 7.5%)( FUTA & SUTA .20% ) | C13: 601
A14: 8 | B14: ='2.4 Adj. Expenses'!B12 -> Purchased Water | C14: 601
A15: 9 | B15: ='2.4 Adj. Expenses'!B13 -> Purchased Power (Electrical for Treatment Plant) | C15: 601
A16: 10 | B16: ='2.4 Adj. Expenses'!B14 -> Fuel for Power Production | C16: 601
A17: 11 | B17: ='2.4 Adj. Expenses'!B15 -> Chemicals | C17: 601
A18: 12 | B18: ='2.4 Adj. Expenses'!B16 -> Materials and Supplies | C18: 601
A19: 13 | B19: ='2.4 Adj. Expenses'!B17 -> Contractual Services - Engineering | C19: 601
A20: 14 | B20: ='2.4 Adj. Expenses'!B18 -> Contractual Services - Accounting | C20: 601
A21: 15 | B21: ='2.4 Adj. Expenses'!B19 -> Contractual Services - Legal | C21: 601
A22: 16 | B22: ='2.4 Adj. Expenses'!B20 -> Contractual Services - Management Fees | C22: 601
A23: 17 | B23: ='2.4 Adj. Expenses'!B21 -> Contractual Services - Testing & Lab Fees | C23: 601
A24: 18 | B24: ='2.4 Adj. Expenses'!B22 -> Contractual Services - Water Sampling | C24: 601
A25: 19 | B25: ='2.4 Adj. Expenses'!B23 -> Contractual Services - Water System Maintenance | C25: 601
A26: 20 | B26: ='2.4 Adj. Expenses'!B24 -> Contractual Services - Water System Repairs: | C26: 601
A27: 21 | B27: ='2.4 Adj. Expenses'!B25 -> 0 | C27: 601
A28: 22 | B28: ='2.4 Adj. Expenses'!B26 -> 0 | C28: 601
A29: 23 | B29: ='2.4 Adj. Expenses'!B27 -> 0 | C29: 601
A30: 24 | B30: ='2.4 Adj. Expenses'!B28 -> 0 | C30: 601
A31: 25 | B31: ='2.4 Adj. Expenses'!B29 -> 0 | C31: 601
A32: 26 | B32: ='2.4 Adj. Expenses'!B30 -> 0 | C32: 601
A33: 27 | B33: ='2.4 Adj. Expenses'!B31 -> 0 | C33: 601
A34: 28 | B34: ='2.4 Adj. Expenses'!B32 -> 0 | C34: 601
A35: 29 | B35: ='2.4 Adj. Expenses'!B33 -> Contractual Services - Connection Expenses | C35: 601
A36: 30 | B36: ='2.4 Adj. Expenses'!B34 -> Contractual Services - Billing | C36: 601
A37: 31 | B37: ='2.4 Adj. Expenses'!B35 -> Contractual Services - Meter Reading | C37: 601
A38: 32 | B38: ='2.4 Adj. Expenses'!B36 -> Contractual Services - Other | C38: 601
A39: 33 | B39: ='2.4 Adj. Expenses'!B37 -> Rental | C39: 601
A40: 34 | B40: ='2.4 Adj. Expenses'!B38 -> Rental of Equipment | C40: 601
A41: 35 | B41: ='2.4 Adj. Expenses'!B39 -> Transportation Expense | C41: 601
A42: 36 | B42: ='2.4 Adj. Expenses'!B40 -> Insurance - Vehicle | C42: 601
A43: 37 | B43: ='2.4 Adj. Expenses'!B41 -> Insurance - General Liability | C43: 601
A44: 38 | B44: ='2.4 Adj. Expenses'!B42 -> Insurance - Worker's Compensation | C44: 601
A45: 39 | B45: ='2.4 Adj. Expenses'!B43 -> Insurance - Other | C45: 601
A46: 40 | B46: ='2.4 Adj. Expenses'!B44 -> Regulatory Expense - Rate Case Expense | C46: 601
A47: 41 | B47: ='2.4 Adj. Expenses'!B45 -> Regulatory Commission Expense - Other | C47: 601
A48: 42 | B48: ='2.4 Adj. Expenses'!B46 -> Water Resource Conservation Expense | C48: 601
A49: 43 | B49: ='2.4 Adj. Expenses'!B47 -> Bad Debt Expense | C49: 601
A50: 44 | B50: ='2.4 Adj. Expenses'!B48 -> Miscellaneous Expenses: | C50: 601
A51: 45 | B51: ='2.4 Adj. Expenses'!B49 -> Office Supplies | C51: 601
A52: 46 | B52: ='2.4 Adj. Expenses'!B50 -> Miscellaneous Expenses (Repairs) : | C52: 601
A53: 47 | B53: ='2.4 Adj. Expenses'!B51 -> Telephone | C53: 601
A54: 48 | B54: ='2.4 Adj. Expenses'!B52 -> Other Misc. Expenses NOT Classified | C54: 601
A55: 49 | B55: ='2.4 Adj. Expenses'!B53 -> Association / Membership Dues - Fees | C55: 601
A56: 50 | B56: ='2.4 Adj. Expenses'!B54 -> Administrative Expenses | C56: 601
A57: 51 | C57: 657 | O57: Check Sum
A58: 52 | B58: Total Operation & Maintenance Expenses:
A59: 53
A60: 54 | B60: Capital Reserve Account Funding | F60: 100% | I60: 0%
A61: 55 | B61: Annual Capital Reserve Funding [From Exhibit 2.6]
A62: 56 | B62: Total Cap Reserve Account Funding:
A63: 57
A64: 58
A65: 59 | B65: Return on Investment (Profit) | F65: 30% | I65: 70%
A66: 60 | B66: Return on Investment [From Exhibit 2.10]
A67: 61 | B67: Total Return on Investment (Profit):
A68: 62
A69: 63 | O69: Check Sum
A70: 64 | B70: Total Expenses Before Taxes:
A71: 65
A72: 66 | B72: Taxes [From Exhibit 2.11] | F72: 100% | I72: 0%
A73: 67 | B73: Property Tax | C73: 408
A74: 68 | B74: Projected Federal and State Income Tax | C74: 409
A75: 69 | B75: Total Taxes:
A76: 70
A77: 71
A78: 72 | B78: Total Revenue Requirement:
A81: -------------------------------------------------- end ------------------------------------------------------

Sheet 2.3.a Notes
A1: back | B1: ='2.1 INDEX'!B1 -> COMMUNITY WATER COMPANY, LLC | H1: Exhibit 2.3.a
B2: ='2.1 INDEX'!B2 -> General Rate Case Increase | H2: ='2.1 INDEX'!E2 -> Docket No. 15-098-01
B3: Expense Allocation (Notes) | H3: ='2.1 INDEX'!$E$3 -> 2015-12-18
B5: Comments:

Sheet 2.4 Adj. Expenses
A1: back | B1: ='2.1 INDEX'!B1 -> COMMUNITY WATER COMPANY, LLC | E1: Exhibit 2.4
B2: ='2.1 INDEX'!B2 -> General Rate Case Increase | E2: ='2.1 INDEX'!E2 -> Docket No. 15-098-01
B3: Adjustments to Expenses | E3: ='2.1 INDEX'!$E$3 -> 2015-12-18
B5: Expense Category | C5: NARUC # | D5: Requested Expenses [From Company Exhibit D.5] | E5: Division Adjustments | F5: Adjusted
F6: Total
F7: Expense
F8: [To Exhibit 1.3]
B9: Operation & Maintenance Expenses
A10: 1 | B10: Salaries & Wages - Employees & Officers | C10: 601 & 603
A11: 2 | B11: Payroll Taxes (SS Taxes 7.5%)( FUTA & SUTA .20% ) | C11: 601 & 603
A12: 3 | B12: Purchased Water | C12: 610
A13: 4 | B13: Purchased Power (Electrical for Treatment Plant) | C13: 615
A14: 5 | B14: Fuel for Power Production | C14: 616
A15: 6 | B15: Chemicals | C15: 618
A16: 7 | B16: Materials and Supplies | C16: 620
A17: 8 | B17: Contractual Services - Engineering | C17: 631
A18: 9 | B18: Contractual Services - Accounting | C18: 632
A19: 10 | B19: Contractual Services - Legal | C19: 633
A20: 11 | B20: Contractual Services - Management Fees | C20: 634
A21: 12 | B21: Contractual Services - Testing & Lab Fees | C21: 635a
A22: 13 | B22: Contractual Services - Water Sampling | C22: 635b
A23: 14 | B23: Contractual Services - Water System Maintenance | C23: 636
A24: 15 | B24: Contractual Services - Water System Repairs: | C24: 637
A25: 16 | C25: 637
A26: 17 | C26: 637
A27: 18 | C27: 637
A28: 19 | C28: 637
A29: 20 | C29: 637
A30: 21 | C30: 637
A31: 22 | C31: 637
A32: 23 | C32: 637
A33: 24 | B33: Contractual Services - Connection Expenses | C33: 638
A34: 25 | B34: Contractual Services - Billing | C34: 639
A35: 26 | B35: Contractual Services - Meter Reading | C35: 639
A36: 27 | B36: Contractual Services - Other | C36: 640
A37: 28 | B37: Rental | C37: 641
A38: 29 | B38: Rental of Equipment | C38: 642
A39: 30 | B39: Transportation Expense | C39: 650
A40: 31 | B40: Insurance - Vehicle | C40: 656
A41: 32 | B41: Insurance - General Liability | C41: 657
A42: 33 | B42: Insurance - Worker's Compensation | C42: 658
A43: 34 | B43: Insurance - Other | C43: 659
A44: 35 | B44: Regulatory Expense - Rate Case Expense | C44: 666
A45: 36 | B45: Regulatory Commission Expense - Other | C45: 667
A46: 37 | B46: Water Resource Conservation Expense | C46: 668
A47: 38 | B47: Bad Debt Expense | C47: 670
A48: 39 | B48: Miscellaneous Expenses: | C48: 675
A49: 40 | B49: Office Supplies | C49: 675
A50: 41 | B50: Miscellaneous Expenses (Repairs) : | C50: 675
A51: 42 | B51: Telephone | C51: 675
A52: 43 | B52: Other Misc. Expenses NOT Classified | C52: 675
A53: 44 | B53: Association / Membership Dues - Fees | C53: 675
A54: 45 | B54: Administrative Expenses | C54: 675
A55: 46
A56: 47
A57: 48
A58: 49
A59: 50
A60: 51 | B60: Total Operation & Maintenance Expenses:
A61: 52
A62: 53 | B62: Annual Capital Reserve Account Funding [From Exhibit 2.6]
A63: 54 | B63: Annual Capital Reserve Account Funding | C63: 403
A64: 55 | B64: Total Annual Capital Reserve Account Funding:
A65: 56
A66: 57 | B66: Return on Investment (Profit) [From Exhibit 2.10]
A67: 58 | B67: Return on Investment
A68: 59 | B68: Total Return on Investment (Profit):
A69: 60
A70: 61 | B70: Taxes [From Exhibit 2.11]
A71: 62 | B71: Property Tax | C71: 408
A72: 63 | B72: Projected Federal and State Income Tax | C72: 409
A73: 64 | B73: Total Taxes:
A74: 65
A75: 66 | B75: TOTALS:
A78: -------------------------------------------------- end ------------------------------------------------------

Sheet 2.4.a Notes
A1: back | B1: ='2.1 INDEX'!B1 -> COMMUNITY WATER COMPANY, LLC | D1: Exhibit 2.4.a
B2: ='2.1 INDEX'!B2 -> General Rate Case Increase | C2: ='2.1 INDEX'!E2 -> Docket No. 15-098-01
B3: Adjustments to Expenses (Notes) | C3: ='2.1 INDEX'!$E$3 -> 2015-12-18

Sheet 2.5 Rev & Exp
A1: back | B1: ='2.3 Allocation of Expense'!B1 -> COMMUNITY WATER COMPANY, LLC | F1: Exhibit 2.5
B2: ='2.1 INDEX'!B2 -> General Rate Case Increase | E2: ='2.1 INDEX'!E2 -> Docket No. 15-098-01
B3: Summary of Revenues and Expenses (Revenue Requirement) | F3: ='2.1 INDEX'!$E$3 -> 2015-12-18
C5: Number of
C6: Customers | E6: Monthly Rate
C7: [From Exh 2.3] | E7: [From Exh 2.2] | G7: Amount
B8: Revenues
A9: 1 | B9: Connected Customers | C9: ='2.3 Allocation of Expense'!J9 -> 0 | F9: 12
A10: 2 | B10: Standby Customers | C10: ='2.3 Allocation of Expense'!G9-'2.3 Allocation of Expense'!J9 -> 0 | F10: 12
A11: 3 | B11: Total Revenue:
A12: 4
A13: 5 | B13: After Taxes
A14: 6 | B14: Connected Customers | C14: ='2.3 Allocation of Expense'!J9 -> 0 | F14: 12
A15: 7 | B15: Standby Customers | C15: ='2.3 Allocation of Expense'!G9-'2.3 Allocation of Expense'!J9 -> 0 | F15: 12
A16: 8 | B16: Total Revenue After Taxes:
A17: 9
A18: 10 | B18: Expenses
A19: 11 | E19: References
A20: 12 | B20: ='2.3 Allocation of Expense'!B58 -> Total Operation & Maintenance Expenses: | E20: [From Exhibit 2.4]
A21: 13 | B21: ='2.3 Allocation of Expense'!B74 -> Projected Federal and State Income Tax | E21: [From Exhibit 2.4]
A22: 14 | B22: ='2.3 Allocation of Expense'!B62 -> Total Cap Reserve Account Funding: | E22: [From Exhibit 2.6]
A23: 15 | B23: ='2.3 Allocation of Expense'!B67 -> Total Return on Investment (Profit): | E23: [From Exhibit 2.10]
A24: 16 | B24: Total Expenses REVENUE REQUIREMENT
A25: 17
A26: 18 | B26: Variable Expenses | E26: [From Exhibit 2.3]
A27: 19
A28: 20 | B28: Total Expenses Less Variable Expenses
A29: 21
A30: 22 | B30: Projected Annual Amount Over/(Under) Earned (line 8 - line 20)
A31: 23
A54: -------------------------------------------------- end ------------------------------------------------------

Sheet 2.6 Cap. Reserve
A1: back | B1: ='2.1 INDEX'!B1 -> COMMUNITY WATER COMPANY, LLC | D1: Exhibit 2.6
B2: ='2.1 INDEX'!B2 -> General Rate Case Increase | C2: ='2.1 INDEX'!E2 -> Docket No. 15-098-01
B3: Capital Reserves | C3: ='2.1 INDEX'!$E$3 -> 2015-12-18
B5: Description | C5: Amount | D5: References
B6: Annual Capital Reserve Account Funding
A7: 1 | B7: Annual Depreciation Expense * | D7: [From Exhibit 2.7]
A8: 2
A9: 3 | B9: Total Annual Capital Reserve Account Funding: | D9: [To Exhibit 2.4]
A47: -------------------------------------------------- end ------------------------------------------------------

Sheet 2.7 Asset Deprec
A1: back | B1: ='2.1 INDEX'!B1 -> COMMUNITY WATER COMPANY, LLC | L1: Exhibit 2.7
B2: ='2.1 INDEX'!B2 -> General Rate Case Increase | E2: : Adjusted Depreciation Expense is based on the Assets list provided by Bowen Collin Engineering. Modified to show recapitalization of certain assets and adjustments to equipment values according to CPI adjustments. | K2: ='2.1 INDEX'!E2 -> Docket No. 15-098-01
B3: Depreciation Expense & Accumulated Depreciation Reconciliation | K3: ='2.1 INDEX'!$E$3 -> 2015-12-18
B5: Depreciation Rates for Water Utilities Per R746-332 | G5: 2015 | J5: Plant Accounts
B6: NARUC Acct # | C6: Account Name | D6: Estimated Year Installed | E6: PSC Approved Depreciation Rate Applied | F6: Average Service Life (Years) | G6: Estimated Beginning Balance from Bowen Collins | H6: DPU Adjustment Using CPI | I6: Estimated Balance at Installation Date | J6: Accumulated Depreciation | K6: Annual Depreciation as Calculated by Community Water | L6: Correct Annual Depreciation Expense for Year | M6: Accum Depreciation through the end of Year
C7: Depreciable
A8: 1 | B8: 304 | C8: Structures and Improvements
A9: 2 | C9: Water Treatment Building (Willow Creek) | D9: 1970
A10: 3 | C10: New Lighting | D10: 2015
A11: 4 | C11: Roof Repairs | D11: 2015
A12: 5 | B12: 305 | C12: Collecting and Impounding Reservoirs
A13: 6 | B13: 306 | C13: Lakes, Rivers, and Other Intakes
A14: 7 | C14: Point of Diversion Structure #1 - (Un-named stream) | D14: 1970
A15: 8 | C15: Point of Diversion Structure #2 - (Willow Creek) | D15: 1970
A16: 9 | B16: 307 | C16: Wells and Springs
A17: 10 | C17: Ambush #1 Well Head | D17: 1980
A18: 11 | C18: Ambush #1 Well Equipment | D18: 1980
A19: 12 | C19: Ambush #2 Well Head - Unknown age | D19: 1980
A20: 13 | C20: Ambush #2 Well Equipment - Unknown age | D20: 1980
A21: 14 | C21: Wagon Trail #1 Well Head - Unknown age | D21: 1980
A22: 15 | C22: Wagon Trail #1 Well Equipment - Unknown age | D22: 1980
A23: 16 | C23: Wagon Trail #2 Well Head | D23: 1980
A24: 17 | C24: Wagon Trail #2 Well Equipment | D24: 1980
A25: 18 | C25: Gulch Well Head | D25: 1986
A26: 19 | C26: Gulch Well Equipment | D26: 1986
A27: 20 | C27: Bushwacker Well Head | D27: 1968
A28: 21 | C28: Bushwacker Well Equipment | D28: 1968
A29: 22 | B29: 308 | C29: Infiltration Galleries and Tunnels
A30: 23 | B30: 309 | C30: Supply Mains
A31: 24 | B31: 310 | C31: Power Generation Equipment
A32: 25 | B32: 311 | C32: Pumping Equipment
A33: 26 | C33: Lookout Lodge Pump Station | D33: 2000
A34: 27 | B34: 320 | C34: Water Treatment Equipment
A35: 28 | B35: 330 | C35: Distribution Reservoirs & Standpipes
A36: 29 | C36: Storage Tank #1 - 1970-1980 | D36: 1980
A37: 30 | C37: Storage Tank #2 - 1970-1980 | D37: 1980
A38: 31 | C38: Lookout Lodge Storage Tank | D38: 2000
A39: 32 | C39: Lookout Lodge Day Tank | D39: 2000
A40: 33 | B40: 331 | C40: Transmission and Distribution Mains
A41: 34 | C41: 8-inch Waterline - 1980 or older | D41: 1980
A42: 35 | C42: 6-inch Waterline - 1980 or older | D42: 1980
A43: 36 | C43: 3-inch Waterline - 1980 or older | D43: 1980
A44: 37 | C44: 2-inch Waterline - 1980 or older | D44: 1980
A45: 38 | B45: 333 | C45: Services | D45: 1985
A46: 39 | B46: 334 | C46: Meters and Meter Installations
A47: 40 | C47: Interconnect – CWC to SWDC | D47: 1996
A48: 41 | C48: Interconnect – SWDC to CWC | D48: 2004
A49: 42 | C49: Master Water Meter (Upper) - 1980 - 1990 | D49: 1980
A50: 43 | C50: Master Water Meter #1 - 1980 - 1990 | D50: 1980
A51: 44 | C51: Master Water Meter #2 - 1980 - 1990 | D51: 1980
A52: 45 | C52: Service Connection Meters - 1980 or older | D52: 1980
A53: 46 | B53: 335 | C53: Hydrants
A54: 47 | B54: 336 | C54: Backflow Prevention Devices
A55: 48 | C55: Pressure Reducing Valves (3) - 1980 - 1990 | D55: 1980
A56: 49 | C56: Air/Vacuum Release Valve | D56: 2000
A57: 50 | B57: 339 | C57: Other Plant & Misc. Equipment | D57: 2011
A58: 51 | B58: 340 | C58: Office Furniture and Equipment | D58: 1995
A59: 52 | B59: 341 | C59: Transportation Equipment | D59: 2008
A60: 53 | B60: 342 | C60: Stores Equipment
A61: 54 | B61: 343 | C61: Tools, Shop and Garage Equipment
A62: 55 | B62: 344 | C62: Laboratory Equipment
A63: 56 | B63: 345 | C63: Power Operated Equipment
A64: 57 | B64: 346 | C64: Communication Equipment
A65: 58 | B65: 347 | C65: Miscellaneous Equipment
A66: 59 | B66: 348 | C66: Other Tangible Plant (Plug for Depreciation Exp.)
A67: 59 | B67: Other Depreciation Expense as Shown on Company's Exhibit D.5
A68: 60 | B68: Total:
I69: [To Exh 2.9] | M69: [To Exh 2.9]
C83: -------------------------------------------------- end ------------------------------------------------------

Sheet 2.7a Notes Asset Deprec
A1: back | B1: ='2.1 INDEX'!B1 -> COMMUNITY WATER COMPANY, LLC | E1: Exhibit 2.7.a
B2: ='2.1 INDEX'!B2 -> General Rate Case Increase | E2: ='2.1 INDEX'!E2 -> Docket No. 15-098-01
E3: ='2.1 INDEX'!$E$3 -> 2015-12-18
B4: Depreciation Expense & Accumulated Depreciation Reconciliation (Notes)

Sheet 2.8 CIAC
A1: back | B1: ='2.1 INDEX'!B1 -> COMMUNITY WATER COMPANY, LLC | K1: Exhibit 2.8
B2: ='2.1 INDEX'!B2 -> General Rate Case Increase | E2: : Adjusted Amortization of CIAC based on the Adjusted assets which is based on the Assets list provided by Bowen Collin Engineering. Modified to show recapitalization of certain assets and adjustments to equipment values according to CPI adjustments. | K2: ='2.1 INDEX'!E2 -> Docket No. 15-098-01
B3: Contribution in Aid of Construction (CIAC) & Amortization of CIAC Reconciliation | K3: ='2.1 INDEX'!E3 -> 2015-12-18
B5: Depreciation Rates for Water Utilities Per R746-332 | G5: 2015 | J5: Plant Accounts
B6: NARUC Acct # | C6: Account Name | D6: Year Installed | E6: PSC Approved Depreciation Rate Applied | F6: Average Service Life (Years) | G6: Estimated Beginning Balance from Bowen Collins | H6: DPU Adjustment Using CPI | I6: Estimated Balance at Installation Date | J6: Accum Amortization of CIAC | K6: Annual CIAC for Year | L6: Accum Amortization of CIAC through the end of Year
C7: Depreciable
A8: 1 | B8: 304 | C8: Structures and Improvements
A9: 2 | C9: Water Treatment Building (Willow Creek) | D9: 1970
A10: 3 | C10: New Lighting | D10: 2015
A11: 4 | C11: Roof Repairs | D11: 2015
A12: 5 | B12: 305 | C12: Collecting and Impounding Reservoirs
A13: 6 | B13: 306 | C13: Lakes, Rivers, and Other Intakes
A14: 7 | C14: Point of Diversion Structure #1 - (Un-named stream) | D14: 1970
A15: 8 | C15: Point of Diversion Structure #2 - (Willow Creek) | D15: 1970
A16: 9 | B16: 307 | C16: Wells and Springs
A17: 10 | C17: Ambush #1 Well Head | D17: 1980
A18: 11 | C18: Ambush #1 Well Equipment | D18: 1980
A19: 12 | C19: Ambush #2 Well Head - Unknown age | D19: 1980
A20: 13 | C20: Ambush #2 Well Equipment - Unknown age | D20: 1980
A21: 14 | C21: Wagon Trail #1 Well Head - Unknown age | D21: 1980
A22: 15 | C22: Wagon Trail #1 Well Equipment - Unknown age | D22: 1980
A23: 16 | C23: Wagon Trail #2 Well Head | D23: 1980
A24: 17 | C24: Wagon Trail #2 Well Equipment | D24: 1980
A25: 18 | C25: Gulch Well Head | D25: 1986
A26: 19 | C26: Gulch Well Equipment | D26: 1986
A27: 20 | C27: Bushwacker Well Head | D27: 1968
A28: 21 | C28: Bushwacker Well Equipment | D28: 1968
A29: 22 | B29: 308 | C29: Infiltration Galleries and Tunnels
A30: 23 | B30: 309 | C30: Supply Mains
A31: 24 | B31: 310 | C31: Power Generation Equipment
A32: 25 | B32: 311 | C32: Pumping Equipment
A33: 26 | C33: Lookout Lodge Pump Station | D33: 2000
A34: 27 | B34: 320 | C34: Water Treatment Equipment
A35: 28 | B35: 330 | C35: Distribution Reservoirs & Standpipes
A36: 29 | C36: Storage Tank #1 - 1970-1980 | D36: 1980
A37: 30 | C37: Storage Tank #2 - 1970-1980 | D37: 1980
A38: 31 | C38: Lookout Lodge Storage Tank | D38: 2000
A39: 32 | C39: Lookout Lodge Day Tank | D39: 2000
A40: 33 | B40: 331 | C40: Transmission and Distribution Mains
A41: 34 | C41: 8-inch Waterline - 1980 or older | D41: 1980
A42: 35 | C42: 6-inch Waterline - 1980 or older | D42: 1980
A43: 36 | C43: 3-inch Waterline - 1980 or older | D43: 1980
A44: 37 | C44: 2-inch Waterline - 1980 or older | D44: 1980
A45: 38 | B45: 333 | C45: Services | D45: 1985
A46: 39 | B46: 334 | C46: Meters and Meter Installations
A47: 40 | C47: Interconnect – CWC to SWDC | D47: 1996
A48: 41 | C48: Interconnect – SWDC to CWC | D48: 2004
A49: 42 | C49: Master Water Meter (Upper) - 1980 - 1990 | D49: 1980
A50: 43 | C50: Master Water Meter #1 - 1980 - 1990 | D50: 1980
A51: 44 | C51: Master Water Meter #2 - 1980 - 1990 | D51: 1980
A52: 45 | C52: Service Connection Meters - 1980 or older | D52: 1980
A53: 46 | B53: 335 | C53: Hydrants
A54: 47 | B54: 336 | C54: Backflow Prevention Devices
A55: 48 | C55: Pressure Reducing Valves (3) - 1980 - 1990 | D55: 1980
A56: 49 | C56: Air/Vacuum Release Valve | D56: 2000
A57: 50 | B57: 339 | C57: Other Plant & Misc. Equipment | D57: 2011
A58: 51 | B58: 340 | C58: Office Furniture and Equipment | D58: 1995
A59: 52 | B59: 341 | C59: Transportation Equipment | D59: 2008
A60: 53 | B60: 342 | C60: Stores Equipment
A61: 54 | B61: 343 | C61: Tools, Shop and Garage Equipment
A62: 55 | B62: 344 | C62: Laboratory Equipment
A63: 56 | B63: 345 | C63: Power Operated Equipment
A64: 57 | B64: 346 | C64: Communication Equipment
A65: 58 | B65: 347 | C65: Miscellaneous Equipment
A66: 59 | B66: 348 | C66: Other Tangible Plant (Plug for Depreciation Exp.)
A67: 60 | B67: Total:
I68: [To Exh 2.9] | L68: [To Exh 2.9]
C82: -------------------------------------------------- end ------------------------------------------------------

Sheet 2.9 Rate Base
A1: back | B1: ='2.1 INDEX'!B1 -> COMMUNITY WATER COMPANY, LLC | F1: Exhibit 2.9
B2: ='2.1 INDEX'!B2 -> General Rate Case Increase | E2: ='2.1 INDEX'!E2 -> Docket No. 15-098-01
B3: Rate Base | E3: ='2.1 INDEX'!$E$3 -> 2015-12-18
B5: Description | D5: Adjustments | E5: Division | F5: Reference
C6: Requested in | E6: Proposed
C7: Rate Case | E7: Rate base
A8: 1 | B8: Rate base Summary
A9: 2 | B9: Utility Plant in Service | F9: (From Line 15)
A10: 3 | B10: Net Working Capital | F10: (From Line 28)
A11: 4 | B11: Total Rate base [Line 2 + Line 3]: | F11: [To Exhibit 2.10]
A12: 5
A13: 6
A14: 7 | B14: Utility Plant in Service (Investment Included in Rate base)
A15: 8 | B15: Utility Plant In Service | F15: [From Exhibit 2.7]
A16: 9 | B16: Accumulated Depreciation | F16: [From Exhibit 2.7]
A17: 10 | B17: Net Utility Plant In Service
A18: 11
A19: 12 | B19: Contributions In Aid of Construction | F19: [From Exhibit 2.8]
A20: 13 | B20: Accum. Amor. CIAC | F20: [From Exhibit 2.8]
A21: 14 | B21: Net Contributions In Aid of Construction
A22: 15 | B22: Net Utility Plant in Service (Investment Included in Rate Base): | E22: =E17+E21 -> 0 | F22: [Lines 11 +14]
A23: 16
A24: 17
A25: 18 | B25: Working Capital
A26: 19 | B26: Customer Deposits | C26: 0 | D26: 0 | E26: 0
A27: 20
A28: 21 | B28: Cash Working Capital (To allow for 45 days of cash on hand)
A29: 22 | B29: Cash on Hand [From Exh D-3 of Application]
A30: 23 | B30: Total Operations & Maintenance Expense | F30: [From Exhibit 2.4]
A31: 24 | B31: Less: Purchased Water | F31: [From Exhibit 2.4]
A32: 25 | B32: Adjusted Total Operations & Maintenance Exp.
A33: 26 | B33: Cash Working Capitol (line 25 X (45/365))
A34: 27
A35: 28 | B35: Net Working Capital | F35: [Lines19 + 26]
A47: -------------------------------------------------- end ------------------------------------------------------

Sheet 2.10 Ret on Inv
A1: back | B1: ='2.1 INDEX'!B1 -> COMMUNITY WATER COMPANY, LLC | F1: Exhibit 2.10
B2: ='2.1 INDEX'!B2 -> General Rate Case Increase | F2: ='2.1 INDEX'!E2 -> Docket No. 15-098-01
B3: Return on Investment | D3: ='2.1 INDEX'!$E$3 -> 2015-12-18
B5: Description | C5: Amount | F5: Reference
A6: 1 | B6: Rate Base | D6: [From Exhibit 2.9]
A7: 2 | B7: Rate of Return on Investment | C7: 0.1
A8: 3 | B8: Return On Investment [line 1 X line 2]
B18: -------------------------------------------------- end ------------------------------------------------------

Sheet 2.11 Taxes
A1: back | B1: ='2.1 INDEX'!B1 -> COMMUNITY WATER COMPANY, LLC | D1: Exhibit 2.11
B2: ='2.1 INDEX'!B2 -> General Rate Case Increase | D2: ='2.1 INDEX'!E2 -> Docket No. 15-098-01
B3: Projected Federal & State Income Taxes | C3: ='2.1 INDEX'!$E$3 -> 2015-12-18
B5: Description | C5: Amount | D5: Reference
B6: Tax Calculation
A7: 1 | B7: Federal Income Tax Rate Used in Calculation | C7: 0.15
A8: 2 | B8: State Income Tax Rate Used in Calculation | C8: 0.05
A9: 3 | B9: Total Tax Rate Used [Line 1 + Line 2] | C9: =C7+C8 -> 0.2
A10: 4
A11: 5 | B11: Tax gross-up factor [line 3 ÷ (1 - line 3)] | C11: =C9/(1-C9) -> 0.25
A12: 6
A13: 7 | B13: Projected Total Revenue Before Taxes | D13: [From Exhibit 2.5]
A14: 8 | B14: Projected Operation & Maintenance Expenses | D14: [From Exhibit 2.5]
A15: 9 | B15: Projected Net Taxable Income
A16: 10
A17: 11 | B17: Estimated Federal and State Income Tax Obligation [line 5 * line 9] | C17: =ROUND(C15*C11,0) -> 0 | D17: [To Exhibit 2.3]
A27: -------------------------------------------------- end ------------------------------------------------------

Sheet Macro (hidden)
B7: System | C7: ='2.2 Rates'!F12 -> 0
B8: User | C8: ='2.2 Rates'!F12+'2.2 Rates'!F17 -> 0
B9: Variable | C9: ='2.2 Rates'!F22 -> 0
